[Event "EYCC Girls-U18 2019"]
[Site "Bratislava"]
[Date "2019.08.02"]
[Round "1.8"]
[White "Sliwicka, Alicja"]
[Black "Golub, Nikolina"]
[Result "1-0"]
[ECO "B54"]
[WhiteElo "2261"]
[BlackElo "1856"]
[Annotator "NA"]
[PlyCount "103"]
[EventDate "2019.08.02"]
[EventType "swiss"]
[EventCountry "SVK"]
[SourceTitle "playchess.com"]
[Source "ChessBase"]
[SourceQuality "1"]
[TimeControl "40/5400+30:1800+30"]

1. e4 {[%emt 0:00:00]} c5 {[%emt 0:00:00]} 2. Nf3 {[%emt 0:00:00]} d6 {[%emt 0:00:00]} 3. d4 {[%emt 0:00:00]} cxd4 {[%emt 0:00:00]} 4. Nxd4 {[%emt 0:00:00]} Nf6 {[%emt 0:00:00]} 5. f3 {[%emt 0:00:07]} a6 {[%emt 0:00:00]} 6. c4 {[%emt 0:00:12]} Nc6 {[%emt 0:01:26]} 7. Nc3 {[%emt 0:00:24]} e6 {[%emt 0:01:34]} 8. Be2 {[%emt 0:01:25]} Be7 {[%emt 0:01:03]} 9. Be3 {[%emt 0:00:33]} O-O {[%emt 0:01:01]} 10. O-O {[%emt 0:00:24]} Qc7 {[%emt 0:02:16]} 11. Rc1 {[%emt 0:00:45]} Rd8 {[%emt 0:05:38]} 12. Nd5 {[%emt 0:04:41]} exd5 {[%emt 0:08:45]} 13. cxd5 {[%emt 0:00:10]} Qb6 {[%emt 0:07:50]} 14. dxc6 {[%emt 0:09:00]} bxc6 {[%emt 0:01:18]} 15. Nf5 {[%emt 0:03:57]} Qb7 {[%emt 0:02:42]} 16. Nxe7+ {[%emt 0:00:59]} Qxe7 {[%emt 0:00:07]} 17. Rxc6 {[%emt 0:05:04]} Bb7 {[%emt 0:02:26]} 18. Rc3 {[%emt 0:01:51]} d5 {[%emt 0:04:59]} 19. e5 {[%emt 0:05:16]} Qxe5 {[%emt 0:02:40]} 20. Bd4 {[%emt 0:02:11]} Qe6 {[%emt 0:01:47]} 21. Rb3 {[%emt 0:04:56]} Bc6 {[%emt 0:07:56]} 22. Rb6 {[%emt 0:03:32]} Rdb8 {[%emt 0:03:11]} 23. Rxb8+ {[%emt 0:03:33]} Rxb8 {[%emt 0:00:05]} 24. Bxa6 {[%emt 0:02:47]} Ra8 {[%emt 0:00:45]} 25. Bd3 {[%emt 0:04:30]} Rxa2 {[%emt 0:02:56]} 26. Re1 {[%emt 0:01:59]} Qd6 {[%emt 0:03:38]} 27. Qc2 {[%emt 0:04:22]} Qb4 {[%emt 0:02:43]} 28. Qf2 {[%emt 0:01:16]} Qd6 {[%emt 0:10:19]} 29. Be5 {[%emt 0:06:32]} Qe7 {[%emt 0:03:30]} 30. Qh4 {[%emt 0:09:36]} h6 {[%emt 0:03:22]} 31. Bc3 {[%emt 0:06:36]} Qa7+ {[%emt 0:01:41]} 32. Bd4 {[%emt 0:01:43]} Ra4 {[%emt 0:05:29]} 33. Bxa7 {[%emt 0:03:46]} Rxh4 {[%emt 0:00:06]} 34. g4 {[%emt 0:06:48]} d4 {[%emt 0:00:52]} 35. Rc1 {[%emt 0:00:26]} Bd7 {[%emt 0:02:57]} 36. Bb8 {[%emt 0:02:04]} h5 {[%emt 0:03:35]} 37. Bg3 {[%emt 0:01:16]} Rh3 {[%emt 0:01:30]} 38. g5 {[%emt 0:01:54]} h4 {[%emt 0:02:27]} 39. Bf1 {[%emt 0:01:05]} hxg3 {[%emt 0:01:04]} 40. Bxh3 {[%emt 0:00:00]} Bxh3 {[%emt 0:00:00]} 41. gxf6 {[%emt 0:00:51]} gxh2+ {[%emt 0:02:34]} 42. Kxh2 {[%emt 0:00:15]} Bf5 {[%emt 0:01:17]} 43. fxg7 {[%emt 0:00:40]} Kxg7 {[%emt 0:00:05]} 44. Kg3 {[%emt 0:00:29]} Kf6 {[%emt 0:00:49]} 45. Kf4 {[%emt 0:00:29]} Ke6 {[%emt 0:01:42]} 46. b4 {[%emt 0:01:40]} Bd3 {[%emt 0:02:00]} 47. Rd1 {[%emt 0:01:10]} Bb5 {[%emt 0:00:05]} 48. Rxd4 {[%emt 0:00:09]} f5 {[%emt 0:00:31]} 49. Rd1 {[%emt 0:00:27]} Bc4 {[%emt 0:00:08]} 50. Re1+ {[%emt 0:00:14]} Kf6 {[%emt 0:00:51]} 51. Re5 {[%emt 0:00:13]} Bd3 {[%emt 0:00:07]} 52. b5 {[%emt 0:00:08]} 1-0

[Event "EYCC Girls-U18 2019"]
[Site "Bratislava"]
[Date "2019.08.02"]
[Round "1.9"]
[White "Chrysogelou, Athanasia-Panagiota"]
[Black "Schneider, Jana"]
[Result "0-1"]
[ECO "D30"]
[WhiteElo "1770"]
[BlackElo "2216"]
[Annotator "NA"]
[PlyCount "152"]
[EventDate "2019.08.02"]
[EventType "swiss"]
[EventCountry "SVK"]
[SourceTitle "playchess.com"]
[Source "ChessBase"]
[SourceQuality "1"]
[TimeControl "40/5400+30:1800+30"]

1. d4 {[%emt 0:00:00]} d5 {[%emt 0:00:00]} 2. c4 {[%emt 0:00:00]} e6 {[%emt 0:00:00]} 3. g3 {[%emt 0:00:35]} dxc4 {[%emt 0:05:09]} 4. Bg2 {[%emt 0:04:09]} c6 {[%emt 0:04:15]} 5. a4 {[%emt 0:02:31]} Nd7 {[%emt 0:07:58]} 6. Qc2 {[%emt 0:06:29]} e5 {[%emt 0:01:14]} 7. Nf3 {[%emt 0:14:03]} exd4 {[%emt 0:01:32]} 8. Nxd4 {[%emt 0:01:06]} Ne5 {[%emt 0:04:51]} 9. Qe4 {[%emt 0:05:37]} Bd6 {[%emt 0:10:47]} 10. O-O {[%emt 0:10:41]} Nf6 {[%emt 0:01:14]} 11. Qc2 {[%emt 0:01:04]} O-O {[%emt 0:06:27]} 12. Bf4 {[%emt 0:06:57]} Qe7 {[%emt 0:08:56]} 13. Na3 {[%emt 0:06:41]} Nd5 {[%emt 0:07:06]} 14. Bd2 {[%emt 0:08:19]} Rd8 {[%emt 0:05:35]} 15. Rfd1 {[%emt 0:07:32]} Bc5 {[%emt 0:01:45]} 16. Bc3 {[%emt 0:03:54]} Bg4 {[%emt 0:06:03]} 17. h3 {[%emt 0:03:37]} Bh5 {[%emt 0:07:52]} 18. Nf5 {[%emt 0:05:46]} Qf6 {[%emt 0:00:12]} 19. Bxe5 {[%emt 0:03:04]} Qxe5 {[%emt 0:00:04]} 20. g4 {[%emt 0:02:20]} Bg6 {[%emt 0:00:52]} 21. Nxc4 {[%emt 0:02:15]} Bxf5 {[%emt 0:00:39]} 22. gxf5 {[%emt 0:00:24]} Qe7 {[%emt 0:05:20]} 23. e3 {[%emt 0:01:28]} Qg5 {[%emt 0:01:52]} 24. Qe4 {[%emt 0:01:52]} Ne7 {[%emt 0:01:26]} 25. Qe5 {[%emt 0:00:58]} Qxf5 {[%emt 0:00:41]} 26. Qc7 {[%emt 0:00:41]} Rxd1+ {[%emt 0:07:00]} 27. Rxd1 {[%emt 0:00:02]} Qc8 {[%emt 0:00:59]} 28. Rd7 {[%emt 0:01:13]} Qe8 {[%emt 0:01:51]} 29. Qxb7 {[%emt 0:00:33]} Rb8 {[%emt 0:00:19]} 30. Qc7 {[%emt 0:00:06]} Rc8 {[%emt 0:01:44]} 31. Qb7 {[%emt 0:00:06]} Rb8 {[%emt 0:01:04]} 32. Qc7 {[%emt 0:00:05]} Rc8 {[%emt 0:00:06]} 33. Qb7 {[%emt 0:00:07]} h6 {[%emt 0:00:58]} 34. a5 {[%emt 0:01:59]} Rb8 {[%emt 0:00:11]} 35. Qc7 {[%emt 0:00:08]} Rc8 {[%emt 0:00:02]} 36. Qb7 {[%emt 0:00:06]} Rd8 {[%emt 0:01:11]} 37. Rxd8 {[%emt 0:01:14]} Qxd8 38. Bxc6 {[%emt 0:00:36]} Qd1+ {[%emt 0:00:36]} 39. Kg2 {[%emt 0:00:19]} Qe2 {[%emt 0:00:52]} 40. Bb5 {[%emt 0:00:00]} Ng6 {[%emt 0:00:00]} 41. Qe4 {[%emt 0:03:44]} Be7 {[%emt 0:02:52]} 42. Nd6 {[%emt 0:09:03]} Qxb2 {[%emt 0:00:57]} 43. Nf5 {[%emt 0:01:28]} Qxb5 {[%emt 0:05:59]} 44. Nxe7+ {[%emt 0:00:19]} Nxe7 {[%emt 0:01:20]} 45. Qxe7 {[%emt 0:00:06]} Qxa5 {[%emt 0:01:28]} 46. Qe8+ {[%emt 0:00:31]} Kh7 {[%emt 0:00:04]} 47. Qxf7 {[%emt 0:00:13]} Qg5+ {[%emt 0:00:11]} 48. Kh2 {[%emt 0:03:09]} Qe5+ {[%emt 0:01:07]} 49. Kg2 {[%emt 0:00:50]} a5 {[%emt 0:00:32]} 50. Qc4 {[%emt 0:01:16]} Qg5+ {[%emt 0:00:59]} 51. Kh2 {[%emt 0:00:56]} Qe5+ {[%emt 0:00:24]} 52. Kg2 {[%emt 0:00:13]} Qe8 {[%emt 0:01:28]} 53. e4 {[%emt 0:02:11]} a4 {[%emt 0:00:26]} 54. e5 {[%emt 0:02:45]} Qg6+ {[%emt 0:02:42]} 55. Kh2 {[%emt 0:02:43]} a3 {[%emt 0:04:12]} 56. e6 {[%emt 0:00:59]} Qf6 {[%emt 0:02:00]} 57. Qe4+ {[%emt 0:04:45]} g6 {[%emt 0:00:36]} 58. Qe2 {[%emt 0:04:26]} Qf4+ {[%emt 0:00:35]} 59. Kg2 {[%emt 0:00:19]} Qg5+ {[%emt 0:00:48]} 60. Kh2 {[%emt 0:00:23]} Qe7 {[%emt 0:00:42]} 61. Qd3 {[%emt 0:00:58]} Kg7 {[%emt 0:09:22]} 62. Qd4+ {[%emt 0:00:21]} Kg8 {[%emt 0:00:54]} 63. Qd7 {[%emt 0:00:32]} Kf8 {[%emt 0:00:28]} 64. Qc8+ {[%emt 0:00:12]} Kg7 {[%emt 0:00:17]} 65. Qc3+ {[%emt 0:00:44]} Kg8 {[%emt 0:00:46]} 66. Qc8+ {[%emt 0:00:20]} Qf8 {[%emt 0:00:59]} 67. Qc2 {[%emt 0:00:42]} Qd6+ {[%emt 0:00:12]} 68. Kg2 {[%emt 0:00:40]} Qxe6 {[%emt 0:00:08]} 69. Qd3 {[%emt 0:00:20]} a2 {[%emt 0:01:16]} 70. Qd8+ {[%emt 0:00:11]} Kg7 {[%emt 0:00:06]} 71. Qd4+ {[%emt 0:00:10]} Qf6 {[%emt 0:00:13]} 72. Qa7+ {[%emt 0:00:10]} Qf7 {[%emt 0:00:04]} 73. Qd4+ {[%emt 0:00:08]} Kh7 {[%emt 0:00:24]} 74. Qa4 {[%emt 0:00:47]} Qd5+ {[%emt 0:01:51]} 75. Kh2 {[%emt 0:00:20]} Qe5+ {[%emt 0:00:15]} 76. f4 {[%emt 0:00:19]} Qb2+ {[%emt 0:00:10]} 0-1

[Event "EYCC Girls-U18 2019"]
[Site "Bratislava"]
[Date "2019.08.02"]
[Round "1.10"]
[White "Muetsch, Annmarie"]
[Black "Poliakova, Varvara"]
[Result "1-0"]
[ECO "C45"]
[WhiteElo "2266"]
[BlackElo "1872"]
[Annotator "NA"]
[PlyCount "109"]
[EventDate "2019.08.02"]
[EventType "swiss"]
[EventCountry "SVK"]
[SourceTitle "playchess.com"]
[Source "ChessBase"]
[SourceQuality "1"]
[TimeControl "40/5400+30:1800+30"]

1. e4 {[%emt 0:00:00]} e5 {[%emt 0:00:00]} 2. Nf3 {[%emt 0:00:00]} Nc6 {[%emt 0:00:00]} 3. d4 {[%emt 0:00:00]} exd4 {[%emt 0:00:00]} 4. Nxd4 {[%emt 0:00:00]} Nf6 {[%emt 0:00:00]} 5. Nxc6 {[%emt 0:00:00]} bxc6 {[%emt 0:00:00]} 6. e5 {[%emt 0:00:06]} Qe7 {[%emt 0:00:00]} 7. Qe2 {[%emt 0:00:04]} Nd5 {[%emt 0:00:18]} 8. c4 {[%emt 0:00:07]} Nb6 {[%emt 0:00:06]} 9. Nc3 {[%emt 0:00:09]} Qe6 {[%emt 0:00:13]} 10. Qe4 {[%emt 0:00:09]} d5 {[%emt 0:01:06]} 11. exd6 {[%emt 0:00:35]} Qxe4+ {[%emt 0:00:43]} 12. Nxe4 {[%emt 0:00:07]} cxd6 {[%emt 0:00:03]} 13. Bf4 {[%emt 0:06:08]} d5 {[%emt 0:10:35]} 14. cxd5 {[%emt 0:00:22]} Bb4+ {[%emt 0:04:02]} 15. Bd2 {[%emt 0:04:10]} Nxd5 {[%emt 0:04:30]} 16. Rc1 {[%emt 0:11:13]} O-O {[%emt 0:12:44]} 17. f3 {[%emt 0:08:43]} Re8 {[%emt 0:11:45]} 18. Bxb4 {[%emt 0:03:51]} f5 {[%emt 0:04:39]} 19. Ba3 {[%emt 0:11:16]} fxe4 {[%emt 0:00:57]} 20. Rxc6 {[%emt 0:13:20]} Bb7 {[%emt 0:04:12]} 21. Rc5 {[%emt 0:05:45]} exf3+ {[%emt 0:05:41]} 22. Kf2 {[%emt 0:00:52]} Ne3 {[%emt 0:09:15]} 23. gxf3 {[%emt 0:02:53]} Rad8 {[%emt 0:01:08]} 24. Bb4 {[%emt 0:03:05]} Re6 {[%emt 0:03:41]} 25. Be2 {[%emt 0:07:36]} Rde8 {[%emt 0:04:35]} 26. Re1 {[%emt 0:02:50]} Ng2 {[%emt 0:16:15]} 27. Bc4 {[%emt 0:03:25]} Nxe1 {[%emt 0:00:03]} 28. Bxe1 {[%emt 0:00:05]} Ba6 {[%emt 0:01:07]} 29. Bb3 {[%emt 0:04:08]} Kf8 {[%emt 0:00:05]} 30. Bxe6 {[%emt 0:05:48]} Rxe6 {[%emt 0:00:04]} 31. Bc3 {[%emt 0:00:05]} Rh6 {[%emt 0:05:20]} 32. Rc7 {[%emt 0:00:47]} Rxh2+ {[%emt 0:00:06]} 33. Kg3 {[%emt 0:00:04]} Rh1 {[%emt 0:00:27]} 34. Bxg7+ {[%emt 0:00:46]} Kg8 {[%emt 0:00:09]} 35. Bc3 {[%emt 0:01:49]} h5 {[%emt 0:01:19]} 36. Kg2 {[%emt 0:01:06]} Ra1 {[%emt 0:00:38]} 37. a3 {[%emt 0:00:22]} h4 {[%emt 0:00:30]} 38. Rg7+ {[%emt 0:03:07]} Kf8 {[%emt 0:00:10]} 39. Rxa7 {[%emt 0:01:17]} Bf1+ {[%emt 0:00:18]} 40. Kf2 {[%emt 0:00:00]} h3 {[%emt 0:00:00]} 41. Rh7 {[%emt 0:07:11]} Bg2 {[%emt 0:02:40]} 42. Kg3 {[%emt 0:01:54]} Rg1 {[%emt 0:01:14]} 43. Be5 {[%emt 0:03:10]} Re1 {[%emt 0:00:31]} 44. f4 {[%emt 0:01:36]} Re3+ {[%emt 0:01:20]} 45. Kf2 {[%emt 0:01:33]} Rf3+ {[%emt 0:01:53]} 46. Ke2 {[%emt 0:00:07]} Rf1 {[%emt 0:00:34]} 47. b4 {[%emt 0:03:38]} Rb1 {[%emt 0:00:39]} 48. f5 {[%emt 0:02:09]} Rb3 {[%emt 0:01:38]} 49. f6 {[%emt 0:00:50]} Bd5 {[%emt 0:00:41]} 50. a4 {[%emt 0:04:50]} Ra3 {[%emt 0:02:41]} 51. a5 {[%emt 0:00:36]} Bc4+ {[%emt 0:01:06]} 52. Kd2 {[%emt 0:02:04]} Bd5 {[%emt 0:00:07]} 53. Bd6+ {[%emt 0:01:39]} Kg8 {[%emt 0:00:16]} 54. Rg7+ {[%emt 0:00:53]} Kh8 {[%emt 0:00:01]} 55. f7 {[%emt 0:00:58]} 1-0

[Event "EYCC Girls-U18 2019"]
[Site "Bratislava"]
[Date "2019.08.02"]
[Round "1.11"]
[White "Kocyigit, Buse Naz"]
[Black "Represa Perez, Mireya"]
[Result "1-0"]
[ECO "A45"]
[WhiteElo "2045"]
[BlackElo "2017"]
[Annotator "NA"]
[PlyCount "85"]
[EventDate "2019.08.02"]
[EventType "swiss"]
[EventCountry "SVK"]
[SourceTitle "playchess.com"]
[Source "ChessBase"]
[SourceQuality "1"]
[TimeControl "40/5400+30:1800+30"]

1. d4 {[%emt 0:00:00]} Nf6 {[%emt 0:00:00]} 2. Bg5 {[%emt 0:00:00]} e6 {[%emt 0:00:00]} 3. e4 {[%emt 0:00:00]} h6 {[%emt 0:00:00]} 4. Bxf6 {[%emt 0:00:00]} Qxf6 {[%emt 0:00:00]} 5. c3 {[%emt 0:00:00]} d6 {[%emt 0:01:40]} 6. Bd3 {[%emt 0:00:30]} Nc6 {[%emt 0:00:43]} 7. Ne2 {[%emt 0:00:36]} Bd7 {[%emt 0:03:16]} 8. O-O {[%emt 0:00:52]} g6 {[%emt 0:04:25]} 9. Nd2 {[%emt 0:00:44]} Bg7 {[%emt 0:00:07]} 10. f4 {[%emt 0:00:08]} Qe7 {[%emt 0:01:46]} 11. b4 {[%emt 0:09:03]} O-O {[%emt 0:06:16]} 12. Qc2 {[%emt 0:09:43]} f5 {[%emt 0:05:16]} 13. Rae1 {[%emt 0:05:39]} Kh8 {[%emt 0:07:40]} 14. Nf3 {[%emt 0:09:07]} Qf7 {[%emt 0:03:02]} 15. Ng3 {[%emt 0:14:49]} Ne7 {[%emt 0:03:35]} 16. h4 {[%emt 0:01:36]} Rac8 {[%emt 0:11:30]} 17. e5 {[%emt 0:09:06]} Rg8 {[%emt 0:22:44]} 18. Kf2 {[%emt 0:03:09]} Nd5 {[%emt 0:03:47]} 19. Qd2 {[%emt 0:00:33]} b5 {[%emt 0:00:45]} 20. Rh1 {[%emt 0:02:19]} Bf8 {[%emt 0:00:23]} 21. Rh3 {[%emt 0:07:05]} Be7 {[%emt 0:02:12]} 22. Reh1 {[%emt 0:02:08]} Ra8 {[%emt 0:01:33]} 23. c4 {[%emt 0:06:50]} bxc4 {[%emt 0:05:16]} 24. Bxc4 {[%emt 0:00:01]} Qe8 {[%emt 0:01:37]} 25. Bxd5 {[%emt 0:04:08]} exd5 {[%emt 0:00:01]} 26. Rc1 {[%emt 0:02:38]} Bd8 {[%emt 0:02:54]} 27. Ne2 {[%emt 0:01:03]} Rb8 {[%emt 0:00:30]} 28. Qc3 {[%emt 0:01:49]} Bb5 {[%emt 0:00:48]} 29. Ng3 {[%emt 0:00:44]} Bc4 {[%emt 0:01:12]} 30. a3 {[%emt 0:01:40]} a5 {[%emt 0:02:29]} 31. Nd2 {[%emt 0:00:21]} axb4 {[%emt 0:00:06]} 32. axb4 {[%emt 0:00:01]} Qa4 {[%emt 0:00:52]} 33. Nxc4 {[%emt 0:01:42]} dxc4 {[%emt 0:00:10]} 34. h5 {[%emt 0:08:21]} Rxb4 {[%emt 0:03:43]} 35. hxg6 {[%emt 0:00:01]} Rxg6 {[%emt 0:01:35]} 36. Ra1 {[%emt 0:00:15]} Qb5 {[%emt 0:02:18]} 37. Ra8 {[%emt 0:00:01]} Rb3 {[%emt 0:01:57]} 38. Rxd8+ {[%emt 0:00:33]} Kh7 {[%emt 0:00:32]} 39. Qa1 {[%emt 0:00:19]} Rgxg3 {[%emt 0:01:59]} 40. Qa8 {[%emt 0:00:00]} Rxh3 41. Rh8+ {[%emt 0:00:21]} Kg6 {[%emt 0:01:15]} 42. Qg8+ {[%emt 0:00:12]} Kh5 {[%emt 0:02:45]} 43. Qg5# {[%emt 0:00:07]} 1-0

[Event "EYCC Girls-U18 2019"]
[Site "Bratislava"]
[Date "2019.08.02"]
[Round "1.12"]
[White "Sargsyan, Anna M."]
[Black "Balan, Briana-Cleopatra"]
[Result "1-0"]
[ECO "D31"]
[WhiteElo "2229"]
[BlackElo "1869"]
[Annotator "NA"]
[PlyCount "69"]
[EventDate "2019.08.02"]
[EventType "swiss"]
[EventCountry "SVK"]
[SourceTitle "playchess.com"]
[Source "ChessBase"]
[SourceQuality "1"]
[TimeControl "40/5400+30:1800+30"]

1. d4 {[%emt 0:00:00]} d5 {[%emt 0:00:00]} 2. c4 {[%emt 0:00:00]} e6 {[%emt 0:00:00]} 3. Nc3 {[%emt 0:00:00]} a6 {[%emt 0:00:07]} 4. cxd5 {[%emt 0:00:19]} exd5 {[%emt 0:00:08]} 5. Nf3 {[%emt 0:00:03]} c6 {[%emt 0:00:13]} 6. Qc2 {[%emt 0:00:14]} Bd6 {[%emt 0:00:54]} 7. Bg5 {[%emt 0:00:11]} Ne7 {[%emt 0:03:51]} 8. Bxe7 {[%emt 0:01:46]} Qxe7 {[%emt 0:02:54]} 9. Nxd5 {[%emt 0:01:52]} Qd8 {[%emt 0:06:02]} 10. Nc3 {[%emt 0:00:31]} O-O {[%emt 0:01:41]} 11. e3 {[%emt 0:01:10]} Bg4 {[%emt 0:07:48]} 12. Bd3 {[%emt 0:00:29]} h6 {[%emt 0:05:12]} 13. Nd2 {[%emt 0:03:00]} Nd7 {[%emt 0:01:44]} 14. h3 {[%emt 0:00:07]} Be6 {[%emt 0:00:26]} 15. O-O {[%emt 0:00:10]} Nb6 {[%emt 0:02:00]} 16. Nce4 {[%emt 0:04:01]} Rc8 {[%emt 0:08:25]} 17. Nxd6 {[%emt 0:00:09]} Qxd6 {[%emt 0:00:08]} 18. Ne4 {[%emt 0:00:10]} Qe7 {[%emt 0:09:11]} 19. Nc5 {[%emt 0:00:13]} Rb8 {[%emt 0:00:49]} 20. b4 {[%emt 0:00:54]} Rfd8 {[%emt 0:05:52]} 21. a4 {[%emt 0:03:13]} Nd5 {[%emt 0:04:29]} 22. Rab1 {[%emt 0:00:19]} Nc7 {[%emt 0:08:12]} 23. b5 cxb5 {[%emt 0:03:48]} 24. axb5 {[%emt 0:01:32]} axb5 {[%emt 0:00:48]} 25. Nxe6 {[%emt 0:00:16]} Nxe6 {[%emt 0:00:20]} 26. Rxb5 {[%emt 0:00:06]} b6 {[%emt 0:05:36]} 27. Rfb1 {[%emt 0:00:44]} Rd6 {[%emt 0:01:20]} 28. Bc4 {[%emt 0:02:46]} Nc7 {[%emt 0:04:02]} 29. Rf5 {[%emt 0:00:21]} Rf6 {[%emt 0:01:06]} 30. Rxf6 {[%emt 0:01:08]} Qxf6 {[%emt 0:00:07]} 31. Ra1 {[%emt 0:00:37]} Qd6 {[%emt 0:05:18]} 32. Ra7 {[%emt 0:00:31]} Rc8 {[%emt 0:06:22]} 33. Bxf7+ {[%emt 0:02:36]} Kh8 {[%emt 0:00:34]} 34. Ba2 {[%emt 0:00:33]} Qd8 {[%emt 0:02:26]} 35. Bb1 {[%emt 0:00:09]} 1-0

[Event "EYCC Girls-U18 2019"]
[Site "Bratislava"]
[Date "2019.08.02"]
[Round "1.13"]
[White "Buchta, Agnieszka"]
[Black "Radeva, Viktoria"]
[Result "0-1"]
[ECO "B41"]
[WhiteElo "1818"]
[BlackElo "2247"]
[Annotator "NA"]
[PlyCount "66"]
[EventDate "2019.08.02"]
[EventType "swiss"]
[EventCountry "SVK"]
[SourceTitle "playchess.com"]
[Source "ChessBase"]
[SourceQuality "1"]
[TimeControl "40/5400+30:1800+30"]

1. e4 {[%emt 0:00:00]} c5 {[%emt 0:00:00]} 2. Nf3 {[%emt 0:00:00]} e6 {[%emt 0:00:00]} 3. d4 {[%emt 0:00:00]} cxd4 {[%emt 0:00:00]} 4. Nxd4 {[%emt 0:00:02]} a6 {[%emt 0:00:00]} 5. Be2 {[%emt 0:00:15]} Qc7 {[%emt 0:00:25]} 6. Nc3 {[%emt 0:02:14]} b5 {[%emt 0:04:23]} 7. Bf3 {[%emt 0:11:02]} Bb7 {[%emt 0:03:28]} 8. O-O {[%emt 0:06:01]} Nc6 {[%emt 0:05:40]} 9. Bg5 {[%emt 0:13:02]} Bc5 {[%emt 0:27:09]} 10. Nxc6 {[%emt 0:07:20]} dxc6 {[%emt 0:03:49]} 11. e5 {[%emt 0:19:28]} Qxe5 {[%emt 0:09:39]} 12. Ne4 {[%emt 0:02:14]} Nf6 {[%emt 0:10:24]} 13. Nxf6+ {[%emt 0:07:21]} gxf6 {[%emt 0:00:07]} 14. Bh4 {[%emt 0:04:46]} Qd4 {[%emt 0:09:03]} 15. Qxd4 {[%emt 0:03:51]} Bxd4 {[%emt 0:00:02]} 16. c3 {[%emt 0:00:03]} Be5 {[%emt 0:00:15]} 17. a4 {[%emt 0:00:29]} Ke7 {[%emt 0:10:21]} 18. Be4 {[%emt 0:05:27]} Rhg8 {[%emt 0:01:39]} 19. h3 Bf4 {[%emt 0:02:40]} 20. Ra2 {[%emt 0:06:07]} Rgd8 {[%emt 0:03:31]} 21. Rfa1 {[%emt 0:01:00]} h6 {[%emt 0:01:06]} 22. Kf1 {[%emt 0:05:21]} Bd6 {[%emt 0:01:58]} 23. Ke2 {[%emt 0:02:54]} b4 {[%emt 0:00:23]} 24. cxb4 {[%emt 0:01:07]} Bxb4 {[%emt 0:00:01]} 25. b3 {[%emt 0:00:49]} a5 {[%emt 0:01:26]} 26. Rc1 {[%emt 0:00:38]} Rd4 {[%emt 0:01:25]} 27. Ke3 {[%emt 0:01:02]} Rad8 {[%emt 0:00:50]} 28. Rcc2 {[%emt 0:00:35]} e5 {[%emt 0:02:19]} 29. g4 {[%emt 0:00:38]} R8d6 {[%emt 0:00:37]} 30. Bg3 {[%emt 0:00:27]} Ba6 {[%emt 0:00:36]} 31. Rxc6 {[%emt 0:00:38]} Rxe4+ {[%emt 0:00:07]} 32. Kxe4 {[%emt 0:00:35]} Rxc6 {[%emt 0:00:01]} 33. f4 {[%emt 0:00:32]} Rc3 {[%emt 0:00:37]} 0-1

[Event "EYCC Girls-U18 2019"]
[Site "Bratislava"]
[Date "2019.08.02"]
[Round "1.14"]
[White "Urh, Zala"]
[Black "Manova, Ivana"]
[Result "1-0"]
[ECO "D38"]
[WhiteElo "2072"]
[BlackElo "1845"]
[Annotator "NA"]
[PlyCount "47"]
[EventDate "2019.08.02"]
[EventType "swiss"]
[EventCountry "SVK"]
[SourceTitle "playchess.com"]
[Source "ChessBase"]
[SourceQuality "1"]
[TimeControl "40/5400+30:1800+30"]

1. d4 {[%emt 0:00:00]} Nf6 {[%emt 0:00:00]} 2. c4 {[%emt 0:00:00]} e6 {[%emt 0:00:00]} 3. Nc3 {[%emt 0:00:00]} d5 {[%emt 0:00:13]} 4. Nf3 {[%emt 0:00:00]} Bb4 {[%emt 0:00:40]} 5. Qc2 {[%emt 0:01:08]} O-O {[%emt 0:00:51]} 6. a3 {[%emt 0:00:33]} Bxc3+ {[%emt 0:00:42]} 7. Qxc3 {[%emt 0:00:08]} dxc4 {[%emt 0:01:11]} 8. Qxc4 {[%emt 0:00:28]} b6 {[%emt 0:01:03]} 9. h4 {[%emt 0:00:40]} Ba6 {[%emt 0:02:08]} 10. Qc2 {[%emt 0:00:14]} Nbd7 {[%emt 0:05:33]} 11. e4 {[%emt 0:01:35]} Bxf1 {[%emt 0:01:35]} 12. Kxf1 {[%emt 0:00:11]} c5 {[%emt 0:01:48]} 13. e5 {[%emt 0:01:32]} Nd5 {[%emt 0:17:47]} 14. Ng5 {[%emt 0:03:51]} g6 {[%emt 0:00:17]} 15. h5 {[%emt 0:01:01]} Qe8 {[%emt 0:20:00]} 16. Nxh7 {[%emt 0:02:37]} cxd4 {[%emt 0:04:30]} 17. hxg6 {[%emt 0:05:17]} Nxe5 {[%emt 0:02:27]} 18. Nxf8 {[%emt 0:03:49]} Qb5+ {[%emt 0:04:35]} 19. Kg1 {[%emt 0:00:59]} Rxf8 {[%emt 0:01:38]} 20. g7 {[%emt 0:00:36]} Kxg7 {[%emt 0:02:05]} 21. Qh7+ {[%emt 0:00:31]} Kf6 {[%emt 0:00:12]} 22. Qh4+ {[%emt 0:00:16]} Kf5 {[%emt 0:01:56]} 23. Qg5+ {[%emt 0:00:36]} Ke4 {[%emt 0:02:24]} 24. Rh4+ {[%emt 0:00:11]} 1-0